fUST/lending_fUST_20251203
["ID","MTS","AMOUNT","RATE_DAILY","PERIOD"]
[395752728,1764720659245,-500.0,0.00012951,2]
[395752730,1764720659254,-500.0,0.00012951,2]
[395752732,1764720659264,-467.10219151,0.00012951,2]
[395752734,1764720659273,-768.82,0.00012951,2]
[395752736,1764720659283,-500.0,0.00012951,2]
[395752738,1764720659292,-500.0,0.00012951,2]
[395752740,1764720659301,-500.0,0.00012951,2]
[395752742,1764720659311,-500.0,0.00012951,2]
[395752744,1764720659319,-500.0,0.00012951,2]
[395752746,1764720659329,-500.0,0.00012951,2]
[395752748,1764720659338,-500.0,0.00012951,2]
[395752750,1764720659347,-925.08,0.00012951,2]
[395752752,1764720659356,-507.76,0.00012951,2]
[395752754,1764720659365,-987.62,0.00012951,2]
[395752756,1764720659374,-581.03,0.00012951,2]
[395752758,1764720659384,-693.01,0.00012951,2]
[395752760,1764720659393,-500.0,0.00012951,2]
[395752762,1764720659408,-500.0,0.00012951,2]
[395752764,1764720659417,-500.0,0.00012951,2]
[395752766,1764720659426,-1611.79,0.00012951,2]
[395752768,1764720659436,-1314.88,0.00012951,2]
[395752770,1764720659445,-2086.09,0.00012951,2]
[395752772,1764720659456,-500.0,0.00012951,2]
[395752774,1764720659466,-500.0,0.00012951,2]
[395752776,1764720659476,-500.0,0.00012951,2]
[395752778,1764720659486,-500.0,0.00012951,2]
[395752780,1764720659497,-1082.95,0.00012951,2]
[395752782,1764720659506,-500.0,0.00012951,2]
[395752784,1764720659515,-500.0,0.00012951,2]
[395752786,1764720659525,-500.0,0.00012951,2]
[395752788,1764720659534,-904.58,0.00012951,2]
[395752790,1764720659543,-500.0,0.00012951,2]
[395752792,1764720659552,-399.425855,0.00012951,2]
[395752794,1764720659562,-500.0,0.00012951,2]
[395752796,1764720659571,-500.0,0.00012951,2]
[395752798,1764720659580,-949.81,0.00012951,2]
[395752800,1764720659589,-1519.14,0.00012951,2]
[395752802,1764720659600,-500.0,0.00012951,2]
[395752804,1764720659610,-764.98,0.00012951,2]
[395752806,1764720659619,-500.0,0.00012951,2]
[395752808,1764720659628,-216.98755588,0.00012951,2]
[395752810,1764720659638,-500.0,0.00012951,2]
[395752812,1764720659647,-500.0,0.00012951,2]
[395752814,1764720659656,-1092.43,0.00012951,2]
[395752816,1764720659665,-1824.48,0.00012951,2]
[395752818,1764720659675,-1213.28,0.00012951,2]
[395752820,1764720659684,-500.0,0.00012951,2]
[395752822,1764720659694,-500.0,0.00012951,2]
[395752824,1764720659703,-500.0,0.00012951,2]
[395752826,1764720659712,-500.0,0.00012951,2]
[395752828,1764720659721,-618.67,0.00012951,2]
[395752830,1764720659731,-6005.35,0.00012951,2]
[395752832,1764720659740,-500.0,0.00012951,2]
[395752834,1764720659749,-1853.96,0.00012951,2]
[395752836,1764720659758,-500.0,0.00012951,2]
[395752838,1764720659768,-688.41,0.00012951,2]
[395752840,1764720659778,-791.57,0.00012951,2]
[395752842,1764720659787,-500.0,0.00012951,2]
[395752844,1764720659796,-500.0,0.00012951,2]
[395752846,1764720659806,-736.93,0.00012951,2]
[395752848,1764720659816,-2423.99,0.00012951,2]
[395752850,1764720659825,-515.47,0.00012951,2]
[395752852,1764720659834,-500.0,0.00012951,2]
[395752854,1764720659844,-1556.52,0.00012951,2]
[395752856,1764720659853,-500.0,0.00012951,2]
[395752858,1764720659862,-575.0,0.00012951,2]
[395752860,1764720659873,-738.16,0.00012951,2]
[395752862,1764720659884,-500.0,0.00012951,2]
[395752864,1764720659896,-500.0,0.00012951,2]
[395752866,1764720659908,-832.08,0.00012951,2]
[395752868,1764720659918,-593.87123517,0.00012951,2]
[395752870,1764720659927,-2055.24,0.00012951,2]
[395752872,1764720659936,-500.0,0.00012951,2]
[395752874,1764720659946,-605.83,0.00012951,2]
[395752876,1764720659955,-765.51,0.00012951,2]
[395752878,1764720659965,-500.0,0.00012951,2]
[395752880,1764720659974,-500.0,0.00012951,2]
[395752882,1764720659989,-500.0,0.00012951,2]
[395752884,1764720659999,-985.24,0.00012951,2]
[395752886,1764720660008,-2311.81,0.00012951,2]
[395752888,1764720660016,-636.47,0.00012951,2]
[395752890,1764720660026,-500.0,0.00012951,2]
[395752892,1764720660035,-500.0,0.00012951,2]
[395752894,1764720660045,-594.21,0.00012951,2]
[395752896,1764720660056,-2016.21,0.00012951,2]
[395752898,1764720660066,-1307.44,0.00012951,2]
[395752900,1764720660075,-917.05,0.00012951,2]
[395752902,1764720660084,-500.0,0.00012951,2]
[395752904,1764720660093,-861.2,0.00012951,2]
[395752906,1764720660102,-500.0,0.00012951,2]
[395752908,1764720660112,-500.0,0.00012951,2]
[395752910,1764720660121,-1514.01,0.00012951,2]
[395752912,1764720660130,-500.0,0.00012951,2]
[395752914,1764720660140,-1061.28,0.00012951,2]
[395752916,1764720660149,-1176.4,0.00012951,2]
[395752918,1764720660158,-657.81,0.00012951,2]
[395752920,1764720660167,-500.0,0.00012951,2]
[395752921,1764720660176,-500.0,0.00012951,2]
[395752922,1764720660185,-500.0,0.00012951,2]
[395752923,1764720660193,-500.0,0.00012951,2]
[395752924,1764720660203,-500.0,0.00012951,2]
[395752925,1764720660213,-529.33,0.00012951,2]
[395752926,1764720660222,-500.0,0.00012951,2]
[395752927,1764720660231,-559.55,0.00012951,2]
[395752928,1764720660241,-500.0,0.00012951,2]
[395752929,1764720660250,-500.0,0.00012951,2]
[395752930,1764720660259,-1267.53,0.00012951,2]
[395752931,1764720660268,-1952.3,0.00012951,2]
[395752932,1764720660276,-510.42013348,0.00012951,2]
[395752933,1764720660286,-729.98,0.00012951,2]
[395752935,1764720660295,-500.0,0.00012951,2]
[395752937,1764720660304,-500.0,0.00012951,2]
[395752939,1764720660313,-500.0,0.00012951,2]
[395752941,1764720660323,-1457.04,0.00012951,2]
[395752943,1764720660332,-500.0,0.00012951,2]
[395752945,1764720660342,-500.0,0.00012951,2]
[395752947,1764720660351,-500.0,0.00012951,2]
[395752948,1764720660360,-500.0,0.00012951,2]
[395752950,1764720660371,-1022.34,0.00012951,2]
[395752953,1764720660383,-532.24,0.00012951,2]
[395752954,1764720660392,-731.6,0.00012951,2]
[395752957,1764720660406,-1418.03,0.00012951,2]
[395752958,1764720660416,-1125.57,0.00012951,2]
[395752960,1764720660425,-500.0,0.00012951,2]
[395752962,1764720660434,-1058.04,0.00012951,2]
[395752964,1764720660443,-500.0,0.00012951,2]
[395752966,1764720660452,-500.0,0.00012951,2]
[395752968,1764720660461,-841.13,0.00012951,2]
[395752970,1764720660472,-6149.96,0.00012951,2]
[395752972,1764720660481,-500.0,0.00012951,2]
[395752974,1764720660491,-1697.03,0.00012951,2]
[395752976,1764720660500,-1113.29,0.00012951,2]
[395752978,1764720660509,-500.0,0.00012951,2]
[395752980,1764720660519,-500.0,0.00012951,2]
[395752982,1764720660528,-1005.89,0.00012951,2]
[395752984,1764720660537,-1911.99,0.00012951,2]
[395752986,1764720660547,-6933.66,0.00012951,2]
[395752988,1764720660556,-939.17,0.00012951,2]
[395752990,1764720660565,-500.0,0.00012951,2]
[395752992,1764720660574,-500.0,0.00012951,2]
[395752994,1764720660584,-1124.71,0.00012951,2]
[395752996,1764720660593,-471.93606806,0.00012951,2]
[395752998,1764720660603,-3614.16,0.00012951,2]
[395753000,1764720660612,-500.0,0.00012951,2]
[395753002,1764720660622,-1537.21,0.00012951,2]
[395753004,1764720660630,-500.0,0.00012951,2]
[395753006,1764720660639,-1139.09,0.00012951,2]
[395753008,1764720660648,-751.51,0.00012951,2]
[395753010,1764720660659,-1089.7,0.00012951,2]
[395753011,1764720660667,-618.3,0.00012951,2]
[395753013,1764720660677,-500.0,0.00012951,2]
[395753015,1764720660685,-10044.44,0.00012951,2]
[395753017,1764720660695,-633.2,0.00012951,2]
[395753019,1764720660705,-646.12,0.00012951,2]
[395753021,1764720660714,-623.17,0.00012951,2]
[395753023,1764720660724,-1340.19,0.00012951,2]
[395753025,1764720660733,-1721.06,0.00012951,2]
[395753027,1764720660743,-500.0,0.00012951,2]
[395753029,1764720660751,-1687.99,0.00012951,2]
[395753031,1764720660761,-500.0,0.00012951,2]
[395753033,1764720660770,-633.36,0.00012951,2]
[395753035,1764720660779,-2133.42,0.00012951,2]
[395753037,1764720660788,-835.79,0.00012951,2]
[395753039,1764720660797,-500.0,0.00012951,2]
[395753041,1764720660806,-1150.06,0.00012951,2]
[395753043,1764720660815,-716.76,0.00012951,2]
[395753045,1764720660824,-500.0,0.00012951,2]
[395753047,1764720660834,-500.0,0.00012951,2]
[395753049,1764720660843,-513.58,0.00012951,2]
[395753051,1764720660852,-500.0,0.00012951,2]
[395753053,1764720660862,-3924.31,0.00012951,2]
[395753055,1764720660871,-500.0,0.00012951,2]
[395753070,1764720661011,-474.63,0.00012951,2]
[395753072,1764720661020,-538.16,0.00012951,2]
[395753074,1764720661030,-500.0,0.00012951,2]
[395753076,1764720661039,-500.0,0.00012951,2]
[395753078,1764720661048,-500.0,0.00012951,2]
[395753080,1764720661057,-1330.31,0.00012951,2]
[395753082,1764720661066,-4449.25,0.00012951,2]
[395753084,1764720661076,-1578.01,0.00012951,2]
[395753086,1764720661085,-587.8,0.00012951,2]
[395753088,1764720661094,-500.0,0.00012951,2]
[395753090,1764720661103,-1029.45,0.00012951,2]
[395753092,1764720661112,-500.0,0.00012951,2]
[395753094,1764720661122,-5537.05,0.00012951,2]
[395753096,1764720661131,-1253.26,0.00012951,2]
[395753098,1764720661139,-500.0,0.00012951,2]
[395753100,1764720661149,-550.3,0.00012951,2]
[395753102,1764720661158,-500.0,0.00012951,2]
[395753104,1764720661168,-3748.47,0.00012951,2]
[395753106,1764720661177,-500.0,0.00012951,2]
[395753108,1764720661186,-500.0,0.00012951,2]
[395753110,1764720661195,-500.0,0.00012951,2]
[395753112,1764720661204,-922.74,0.00012951,2]
[395753114,1764720661213,-264.67972326,0.00012951,2]
[395753116,1764720661224,-1274.21,0.00012951,2]
[395753118,1764720661233,-2304.86,0.00012951,2]
[395753120,1764720661243,-4841.43,0.00012951,2]
[395753122,1764720661252,-500.0,0.00012951,2]
[395753123,1764720661261,-1648.98,0.00012951,2]
[395753125,1764720661270,-547.39,0.00012951,2]
[395753128,1764720661280,-500.0,0.00012951,2]
[395753129,1764720661289,-1511.05,0.00012951,2]
[395753131,1764720661298,-820.17,0.00012951,2]
[395753133,1764720661307,-1051.62,0.00012951,2]
[395753136,1764720661316,-500.0,0.00012951,2]
[395753137,1764720661326,-1151.41,0.00012951,2]
[395753139,1764720661335,-584.09,0.00012951,2]
[395753141,1764720661344,-500.0,0.00012951,2]
[395753144,1764720661353,-2059.31,0.00012951,2]
[395753145,1764720661363,-246.70415501,0.00012951,2]
[395753147,1764720661372,-500.0,0.00012951,2]
[395753150,1764720661381,-500.0,0.00012951,2]
[395753151,1764720661391,-1897.89,0.00012951,2]
[395753154,1764720661406,-573.64,0.00012951,2]
[395753156,1764720661417,-500.0,0.00012951,2]
[395753157,1764720661427,-726.19,0.00012951,2]
[395753159,1764720661436,-500.0,0.00012951,2]
[395753161,1764720661448,-991.98,0.00012951,2]
[395753163,1764720661457,-500.0,0.00012951,2]
[395753165,1764720661468,-500.0,0.00012951,2]
[395753167,1764720661477,-500.0,0.00012951,2]
[395753169,1764720661487,-656.47,0.00012951,2]
[395753171,1764720661497,-500.0,0.00012951,2]
[395753174,1764720661507,-1432.21,0.00012951,2]
[395753175,1764720661516,-500.0,0.00012951,2]
[395753177,1764720661525,-1523.26,0.00012951,2]
[395753179,1764720661534,-668.91,0.00012951,2]
[395753181,1764720661545,-5584.11,0.00012951,2]
[395753183,1764720661554,-1123.33,0.00012951,2]
[395753185,1764720661563,-498.0,0.00012951,2]
[395753187,1764720661572,-500.0,0.00012951,2]
[395753189,1764720661582,-500.0,0.00012951,2]
[395753191,1764720661591,-541.35,0.00012951,2]
[395753193,1764720661600,-545.34,0.00012951,2]
[395753195,1764720661610,-500.0,0.00012951,2]
[395753197,1764720661620,-406.46073617,0.00012951,2]
[395753199,1764720661630,-500.0,0.00012951,2]
[395753201,1764720661640,-1128.98,0.00012951,2]
[395753203,1764720661650,-500.0,0.00012951,2]
[395753205,1764720661659,-577.61,0.00012951,2]
[395753207,1764720661668,-1348.79,0.00012951,2]
[395753209,1764720661677,-4500.02,0.00012951,2]
[395753211,1764720661686,-500.0,0.00012951,2]
[395753213,1764720661695,-500.0,0.00012951,2]
[395753215,1764720661704,-1530.49,0.00012951,2]
[395753216,1764720661713,-500.0,0.00012951,2]
[395753217,1764720661722,-500.0,0.00012951,2]
[395753218,1764720661731,-500.0,0.00012951,2]
[395753219,1764720661740,-1174.79,0.00012951,2]
[395753220,1764720661748,-3422.84,0.00012951,2]
[395753221,1764720661757,-500.0,0.00012951,2]
[395753222,1764720661766,-500.0,0.00012951,2]
[395753223,1764720661775,-520.0,0.00012951,2]
[395753224,1764720661784,-500.0,0.00012951,2]
[395753225,1764720661793,-500.0,0.00012952,2]
[395753226,1764720661802,-500.0,0.00012952,2]
[395753227,1764720661812,-500.0,0.00012952,2]
[395753228,1764720661821,-500.0,0.00012952,2]
[395753229,1764720661830,-500.0,0.00012952,2]
[395753230,1764720661840,-822.31,0.00012952,2]
[395753231,1764720661850,-594.8,0.00012952,2]
[395753232,1764720661859,-819.12,0.00012952,2]
[395753233,1764720661868,-500.0,0.00012952,2]
[395753234,1764720661878,-500.0,0.00012952,2]
[395753235,1764720661887,-500.0,0.00012952,2]
[395753236,1764720661896,-530.47,0.00012952,2]
[395753237,1764720661905,-500.0,0.00012952,2]
[395753238,1764720661915,-743.15,0.00012952,2]
[395753239,1764720661924,-500.0,0.00012952,2]
[395753240,1764720661935,-500.0,0.00012952,2]
[395753241,1764720661944,-500.0,0.00012952,2]
[395753242,1764720661954,-500.0,0.00012952,2]
[395753243,1764720661963,-500.0,0.00012952,2]
[395753244,1764720661973,-500.0,0.00012952,2]
[395753245,1764720661982,-500.0,0.00012952,2]
[395753246,1764720662005,-500.0,0.00012952,2]
[395753247,1764720662021,-750.81,0.00012952,2]
[395753248,1764720662039,-500.0,0.00012952,2]
[395753249,1764720662058,-500.0,0.00012952,2]
[395753250,1764720662076,-500.0,0.00012952,2]
[395753251,1764720662093,-500.0,0.00012952,2]
[395753252,1764720662109,-655.86,0.00012952,2]
[395753253,1764720662127,-321.21243474,0.00012952,2]
[395753254,1764720662142,-500.0,0.00012952,2]
[395753255,1764720662158,-500.0,0.00012952,2]
[395753256,1764720662175,-500.0,0.00012952,2]
[395753257,1764720662192,-500.0,0.00012952,2]
[395753258,1764720662212,-1663.68,0.00012952,2]
[395753259,1764720662224,-500.0,0.00012952,2]
[395753260,1764720662239,-721.65,0.00012952,2]
[395753261,1764720662256,-698.39,0.00012952,2]
[395753262,1764720662270,-536.15339802,0.00012952,2]
[395753263,1764720662285,-500.0,0.00012952,2]
[395753264,1764720662299,-500.0,0.00012952,2]
[395753265,1764720662313,-500.0,0.00012952,2]
[395753266,1764720662327,-500.0,0.00012952,2]
[395753267,1764720662342,-506.93,0.00012952,2]
[395753268,1764720662356,-500.0,0.00012952,2]
[395753269,1764720662370,-500.0,0.00012952,2]
[395753270,1764720662384,-500.0,0.00012952,2]
[395753271,1764720662400,-402.01268431,0.00012952,2]
[395753272,1764720662416,-680.98,0.00012952,2]
[395753273,1764720662431,-500.0,0.00012952,2]
[395753274,1764720662447,-508.69,0.00012952,2]
[395753275,1764720662461,-1252.73,0.00012952,2]
[395753276,1764720662475,-581.87,0.00012952,2]
[395753277,1764720662490,-500.0,0.00012952,2]
[395753278,1764720662504,-500.0,0.00012952,2]
[395753279,1764720662520,-1098.72,0.00012952,2]
[395753280,1764720662534,-458.69808963,0.00012952,2]
[395753281,1764720662548,-500.0,0.00012952,2]
[395753282,1764720662562,-500.0,0.00012952,2]
[395753283,1764720662577,-500.0,0.00012952,2]
[395753284,1764720662590,-841.32,0.00012952,2]
[395753285,1764720662604,-500.0,0.00012952,2]
[395753286,1764720662618,-500.0,0.00012952,2]
[395753287,1764720662633,-500.0,0.00012952,2]
[395753288,1764720662647,-500.0,0.00012952,2]
[395753289,1764720662660,-500.0,0.00012952,2]
[395753290,1764720662674,-500.0,0.00012952,2]
[395753291,1764720662692,-500.0,0.00012952,2]
[395753292,1764720662706,-500.0,0.00012952,2]
[395753293,1764720662720,-500.0,0.00012952,2]
[395753294,1764720662735,-500.0,0.00012952,2]
[395753295,1764720662749,-500.0,0.00012952,2]
[395753296,1764720662762,-500.0,0.00012952,2]
[395753297,1764720662776,-500.0,0.00012952,2]
[395753298,1764720662791,-531.9,0.00012952,2]
[395753299,1764720662804,-500.0,0.00012952,2]
[395753300,1764720662819,-500.0,0.00012952,2]
[395753301,1764720662833,-500.0,0.00012952,2]
[395753302,1764720662847,-500.0,0.00012952,2]
[395753303,1764720662861,-568.73,0.00012952,2]
[395753304,1764720662875,-500.0,0.00012952,2]
[395753305,1764720662888,-500.0,0.00012952,2]
[395753306,1764720662901,-500.0,0.00012952,2]
[395753307,1764720662915,-500.0,0.00012952,2]
[395753308,1764720662929,-500.0,0.00012952,2]
[395753309,1764720662943,-603.19,0.00012952,2]
[395753310,1764720662957,-500.0,0.00012952,2]
[395753311,1764720662970,-240.01886118,0.00012952,2]
[395753312,1764720662984,-500.0,0.00012952,2]
[395753313,1764720662998,-500.0,0.00012952,2]
[395753314,1764720663012,-165.71273907,0.00012952,2]
[395753315,1764720663026,-784.39,0.00012952,2]
[395753316,1764720663040,-500.0,0.00012952,2]
[395753317,1764720663054,-500.0,0.00012952,2]
[395753318,1764720663069,-500.0,0.00012952,2]
[395753319,1764720663083,-500.0,0.00012952,2]
[395753320,1764720663097,-500.0,0.00012952,2]
[395753321,1764720663112,-1678.87,0.00012952,2]
[395753322,1764720663126,-1000.0,0.00012952,2]
[395753323,1764720663141,-500.0,0.00012952,2]
[395753324,1764720663155,-500.0,0.00012952,2]
[395753325,1764720663169,-500.0,0.00012952,2]
[395753327,1764720663182,-685.74,0.00012952,2]
[395753329,1764720663196,-500.0,0.00012952,2]
[395753332,1764720663211,-500.0,0.00012952,2]
[395753334,1764720663224,-500.0,0.00012952,2]
[395753336,1764720663239,-500.0,0.00012952,2]
[395753339,1764720663255,-500.0,0.00012952,2]
[395753341,1764720663269,-428.24330769,0.00012952,2]
[395753344,1764720663283,-500.0,0.00012952,2]
[395753346,1764720663297,-500.0,0.00012952,2]
[395753348,1764720663311,-500.0,0.00012952,2]
[395753351,1764720663325,-1142.5,0.00012952,2]
[395753353,1764720663340,-500.0,0.00012952,2]
[395753356,1764720663353,-500.0,0.00012952,2]
[395753358,1764720663368,-777.29,0.00012952,2]
[395753360,1764720663381,-500.0,0.00012952,2]
[395753363,1764720663394,-500.0,0.00012952,2]
[395753365,1764720663412,-500.0,0.00012952,2]
[395753367,1764720663426,-510.55078703,0.00012952,2]
[395753369,1764720663436,-500.0,0.00012952,2]
[395753371,1764720663446,-500.0,0.00012952,2]
[395753373,1764720663456,-500.0,0.00012952,2]
[395753375,1764720663466,-500.0,0.00012952,2]
[395753377,1764720663476,-500.0,0.00012952,2]
[395753379,1764720663488,-526.85,0.00012952,2]
[395753403,1764720663728,-899.47,0.00012952,2]
[395753407,1764720663761,-500.0,0.00012952,2]
[395753409,1764720663775,-669.85,0.00012952,2]
[395753411,1764720663785,-500.0,0.00012952,2]
[395753413,1764720663796,-1041.51,0.00012952,2]
[395753415,1764720663805,-500.0,0.00012952,2]
[395753417,1764720663815,-500.0,0.00012952,2]
[395753419,1764720663826,-500.0,0.00012952,2]
[395753421,1764720663838,-500.0,0.00012952,2]
[395753423,1764720663849,-500.0,0.00012952,2]
[395753425,1764720663858,-932.7,0.00012952,2]
[395753427,1764720663867,-475.86227317,0.00012952,2]
[395753428,1764720663876,-500.0,0.00012952,2]
[395753430,1764720663885,-500.0,0.00012952,2]
[395753432,1764720663895,-1319.62,0.00012952,2]
[395753434,1764720663909,-500.0,0.00012952,2]
[395753436,1764720663918,-500.0,0.00012952,2]
[395753438,1764720663927,-562.03,0.00012952,2]
[395753439,1764720663937,-500.0,0.00012952,2]
[395753441,1764720663946,-524.9,0.00012952,2]
[395753443,1764720663956,-500.0,0.00012952,2]
[395753445,1764720663966,-500.0,0.00012952,2]
[395753447,1764720663975,-425.27159711,0.00012952,2]
[395753449,1764720663985,-500.0,0.00012952,2]
[395753451,1764720663994,-868.72,0.00012952,2]
[395753453,1764720664004,-500.0,0.00012952,2]
[395753455,1764720664013,-500.0,0.00012952,2]
[395753457,1764720664023,-818.09,0.00012952,2]
[395753459,1764720664033,-500.0,0.00012952,2]
[395753461,1764720664043,-500.0,0.00012952,2]
[395753463,1764720664052,-821.87,0.00012952,2]
[395753464,1764720664062,-641.99882493,0.00012952,2]
[395753466,1764720664072,-500.0,0.00012952,2]
[395753468,1764720664081,-500.0,0.00012952,2]
[395753470,1764720664091,-1093.15,0.00012952,2]
[395753472,1764720664101,-499.52873314,0.00012952,2]
[395753474,1764720664111,-500.0,0.00012952,2]
[395753476,1764720664129,-500.0,0.00012952,2]
[395753478,1764720664139,-500.0,0.00012952,2]
[395753480,1764720664149,-553.54969883,0.00012952,2]
[395753482,1764720664159,-500.0,0.00012952,2]
[395753484,1764720664168,-500.0,0.00012952,2]
[395753486,1764720664179,-612.48,0.00012952,2]
[395753488,1764720664188,-500.0,0.00012952,2]
[395753490,1764720664203,-500.0,0.00012952,2]
[395753491,1764720664218,-500.0,0.00012952,2]
[395753493,1764720664228,-500.0,0.00012952,2]
[395753495,1764720664238,-544.36,0.00012952,2]
[395753497,1764720664248,-539.64,0.00012952,2]
[395753499,1764720664260,-500.0,0.00012952,2]
[395753501,1764720664270,-500.0,0.00012952,2]
[395753503,1764720664280,-500.0,0.00012952,2]
[395753505,1764720664289,-545.16,0.00012952,2]
[395753507,1764720664299,-500.0,0.00012952,2]
[395753509,1764720664308,-500.0,0.00012952,2]
[395753511,1764720664319,-500.0,0.00012952,2]
[395753512,1764720664328,-866.68,0.00012952,2]
[395753514,1764720664338,-500.0,0.00012952,2]
[395753516,1764720664347,-500.0,0.00012952,2]
[395753518,1764720664357,-500.0,0.00012952,2]
[395753520,1764720664367,-500.0,0.00012952,2]
[395753522,1764720664376,-615.99118568,0.00012952,2]
[395753524,1764720664385,-500.0,0.00012952,2]
[395753526,1764720664395,-500.0,0.00012952,2]
[395753528,1764720664408,-500.0,0.00012952,2]
[395753530,1764720664418,-500.0,0.00012952,2]
[395753532,1764720664427,-500.0,0.00012952,2]
[395753534,1764720664437,-838.06,0.00012952,2]
[395753536,1764720664448,-500.0,0.00012952,2]
[395753538,1764720664457,-901.82,0.00012952,2]
[395753539,1764720664466,-500.0,0.00012952,2]
[395753541,1764720664476,-500.0,0.00012952,2]
[395753543,1764720664486,-500.0,0.00012952,2]
[395753545,1764720664495,-654.52,0.00012952,2]
[395753547,1764720664505,-980.87,0.00012952,2]
[395753549,1764720664515,-500.0,0.00012952,2]
[395753551,1764720664524,-500.0,0.00012953,2]
[395753553,1764720664533,-500.0,0.00012953,2]
[395753554,1764720664544,-500.0,0.00012953,2]
[395753556,1764720664553,-500.0,0.00012953,2]
[395753558,1764720664563,-690.47,0.00012953,2]
[395753560,1764720664573,-832.21,0.00012953,2]
[395753562,1764720664582,-500.0,0.00012953,2]
[395753564,1764720664591,-500.0,0.00012953,2]
[395753566,1764720664600,-634.16,0.00012953,2]
[395753568,1764720664610,-500.0,0.00012953,2]
[395753570,1764720664619,-1331.94,0.00012953,2]
[395753572,1764720664628,-500.0,0.00012953,2]
[395753574,1764720664637,-500.0,0.00012953,2]
[395753576,1764720664647,-750.15,0.00012953,2]
[395753578,1764720664656,-500.0,0.00012953,2]
[395753580,1764720664666,-500.0,0.00012953,2]
[395753581,1764720664675,-1327.44,0.00012953,2]
[395753583,1764720664685,-500.0,0.00012953,2]
[395753585,1764720664694,-500.0,0.00012953,2]
[395753587,1764720664703,-500.0,0.00012953,2]
[395753589,1764720664713,-500.0,0.00012953,2]
[395753591,1764720664722,-500.0,0.00012953,2]
[395753593,1764720664731,-1312.65,0.00012953,2]
[395753595,1764720664741,-837.13,0.00012953,2]
[395753597,1764720664750,-752.22,0.00012953,2]
[395753599,1764720664760,-2183.35,0.00012953,2]
[395753601,1764720664769,-500.0,0.00012953,2]
[395753603,1764720664778,-195.27686796,0.00012995,2]
[395753604,1764720664788,-501.13199368,0.00012995,2]
[395753606,1764720664797,-172.79557227,0.00012995,2]
[395753608,1764720664806,-328.09225,0.00012995,2]
[395753610,1764720664816,-242.2596715,0.00012995,2]
[395753612,1764720664825,-201.93286099,0.00012995,2]
[395753614,1764720664834,-500.0,0.00012995,2]
[395753616,1764720664844,-500.0,0.00012995,2]
[395753618,1764720664853,-500.0,0.00012995,2]
[395753620,1764720664863,-500.0,0.00012995,2]
[395753622,1764720664872,-516.72522981,0.00012995,2]
[395753624,1764720664881,-631.0,0.00013118,2]
[395753626,1764720664891,-1358.0,0.00013118,2]
[395753628,1764720664900,-2154.0,0.00013118,2]
[395753630,1764720664909,-441.34,0.00013118,2]
[395753632,1764720664918,-414.0,0.00013118,2]
[395753634,1764720664928,-8647.75930497,0.00013126,2]